Cogmind - Beta 11.1 @@@ ROGUE MODE // 2022.06.30 @ 00:49:12 Player: Malakyel Result: Destroyed by B-36 Bruiser with Hammer Performance ------------- Evolutions (2) 1000 Regions Visited (3) 600 Robots Destroyed (71) 355 Value Destroyed (1598) 1598 Prototype IDs (4) 80 Alien Tech Used (0) 0 Bonus (95) 95 TOTAL SCORE: 3728 Bonus ------- High Alert Combat Kills 95 Cogmind --------- Core Integrity 0/550 Matter 300/300 Energy 100/100 System Corruption 11% Temperature Cool (0) Movement Core (50) Location -8/Materials Parts ------- > --- POWER (1) -------- (None) > --- PROPULSION (2) --- (None) > --- UTILITY (6) ------ (None) > --- WEAPON (2) ------- (None) > --- INVENTORY (5) ---- Improved Ion Engine Light Treads High-capacity Matter Pod (200) Datajack Peak State ------------ > --- POWER ------------ Cooled Ion Engine > --- PROPULSION ------- Aluminum Leg Improved Aluminum Leg > --- UTILITY ---------- Improved Heat Sink Large Storage Unit Machine Analyzer Sensor Array Improved Targeting Computer ECM Suite > --- WEAPON ----------- Medium Laser Beam Rifle > --- INVENTORY -------- Ion Engine Improved Ion Engine High-capacity Matter Pod Weight Redist. System Visual Processing Unit Heavy Assault Rifle Datajack [Rating: 21] Favorites ----------- Power Ion Engine Engine Ion Engine Propulsion Aluminum Leg Treads Light Treads Leg Aluminum Leg Utility Machine Analyzer Device Improved Heat Sink Storage Medium Storage Unit Processor Machine Analyzer Protection Light Armor Plating Weapon Medium Laser Energy Gun Medium Laser Ballistic Gun Light Assault Rifle Special Weapon Mining Laser Build | -11 -10 -9 -8 ------- Run | Scr Mat Mat Mat Slots Evolved 4 | . . 2 2 Power . | . . . . Propulsion . | . . . . Utility 4 | . . 2 2 Weapon . | . . . . Parts Attached 49 | 10 6 21 12 Power 7 | 1 3 2 1 Engine 7 | 1 3 2 1 Core . | . . . . Reactor . | . . . . Propulsion 14 | 3 2 8 1 Treads 2 | 1 . . 1 Leg 12 | 2 2 8 . Wheel . | . . . . Hover . | . . . . Flight . | . . . . Utility 15 | 2 1 5 7 Device 7 | 1 . 2 4 Storage 4 | 1 . 2 1 Processor 3 | . 1 1 1 Hackware . | . . . . Protection 1 | . . . 1 Artifact . | . . . . Weapon 13 | 4 . 6 3 Energy Gun 9 | 1 . 6 2 Energy Cannon . | . . . . Ballistic Gun 3 | 2 . . 1 Ballistic Cannon . | . . . . Launcher . | . . . . Special Weapon 1 | 1 . . . Impact Weapon . | . . . . Slashing Weapon . | . . . . Piercing Weapon . | . . . . Special Melee Weapon . | . . . . Unidentified Prototypes . | . . . . Parts Lost 22 | . . 4 18 Power 2 | . . . 2 Propulsion 3 | . . 1 2 Utility 9 | . . . 9 Weapon 8 | . . 3 5 Highest Loss Streak 10 | . . 1 10 To Critical Strikes . | . . . . Average Slot Usage (%) 97 | . 100 99 88 Engine 11 | . 14 11 7 Leg 21 | . 28 21 13 Device 10 | . 3 10 17 Storage 11 | . 14 11 9 Processor 18 | . 10 22 18 Energy Gun 18 | . 14 21 14 Ballistic Gun 3 | . 14 . 1 Naked Turns . | . . . . Heaviest Build 37 | 13 13 23 37 Greatest Support 26 | 20 20 23 26 Greatest Overweight (x) 3 | . . 2 3 Average Overweight (x) . | . . . 1 Largest Inventory Capacity 15 | 8 8 10 15 Average Capacity 9 | 7 8 9 14 Most Carried 10 | 7 8 10 9 Average Carried 7 | 5 7 9 6 Final Capacity 10 | 8 8 10 5 Final Carried 10 | 6 8 10 4 Class Distribution -------------------- 51% | Scavenger-Mutant 48% | Mutant Dominant Class ---------------- Mutant | -10/Materials Scavenger-Mutant | -9/Materials Scavenger-Mutant | -8/Materials Resources | -11 -10 -9 -8 ----------- Run | Scr Mat Mat Mat Matter Collected 1060 | 443 298 186 133 Remotely 10 | . . . 10 Salvage Created 2396 | 324 287 1268 517 Parts 162 | 40 21 73 28 Haulers Intercepted 1 | . . 1 . Recyclers Shooed 3 | . 2 . 1 Parts Field Recycled . | . . . . Retrieved Matter . | . . . . Parts Self-Destructed . | . . . . Prevented . | . . . . Kills | -11 -10 -9 -8 ------- Run | Scr Mat Mat Mat Combat Hostiles Destroyed 42 | . 8 26 8 Guns 38 | . 8 23 7 AOE 2 | . . 2 . Classes Destroyed 11 | 3 5 2 1 Worker 6 | 4 . 1 1 Builder 3 | . 1 1 1 Tunneler 9 | 9 . . . Hauler 1 | . . 1 . Recycler 2 | 1 . . 1 Mechanic 2 | . 1 1 . Watcher 6 | . 1 5 . Swarmer 11 | . 4 7 . Grunt 20 | . 4 12 4 Duelist 1 | . . . 1 Sentry 10 | . . 7 3 Best Kill Streak 8 | 2 3 8 4 Combat Bots Only 6 | . 2 6 2 Max Kills in Single Turn 3 | 1 1 3 2 Gunslinging . | . . . . Exploded 2 | . . 2 . Melee . | . . . . Uniques/NPCs Destroyed . | . . . . Combat | -11 -10 -9 -8 -------- Run | Scr Mat Mat Mat Damage Taken 3315 | . 418 1049 1848 Core 850 | . 59 232 559 Absorbed by Shields . | . . . . Regen/Repaired (Parts) 44 | . . 44 . Core Remaining (%) 72 | 100 76 42 . Volleys Fired 228 | 45 48 92 43 Largest 2 | 2 2 2 2 Hottest 106 | 100 60 100 106 Shots Fired 439 | 87 95 180 77 Gun 437 | 85 95 180 77 Cannon . | . . . . Launcher . | . . . . Special 2 | 2 . . . Kinetic 108 | 43 48 1 16 Thermal 308 | 44 47 156 61 Explosive . | . . . . Electromagnetic 23 | . . 23 . Robot Hit Streak 13 | 9 7 13 13 Robot Miss Streak 5 | 3 5 3 4 Penetration Max . | . . . . Secondary Targets 8 | . 3 4 1 Max Gunslinging Chain 1 | . 1 1 1 Shots Hit Robots 259 | 51 51 108 49 Core Hits 118 | 21 18 54 25 Critical Kills . | . . . . Critical Parts Destroyed . | . . . . Critical Strikes 12 | . . 8 4 Burn 12 | . . 8 4 Melee Attacks . | . . . . Impact . | . . . . Slashing . | . . . . Piercing . | . . . . Sneak Attacks . | . . . . Combat Hostiles . | . . . . Follow-up Attacks . | . . . . Damage Inflicted 3262 | 488 534 1523 717 Guns 3059 | 488 534 1320 717 Cannons . | . . . . Explosions 180 | . . 180 . Melee . | . . . . Ramming 23 | . . 23 . Kinetic 616 | 187 239 . 190 Thermal 2403 | 301 295 1280 527 Explosive . | . . . . Electromagnetic 220 | . . 220 . Impact . | . . . . Slashing . | . . . . Piercing . | . . . . Highest Corruption 9 | . . . 9 Average Corruption 7 | . . . 7 Corruption Purged . | . . . . Corruption Blocked . | . . . . Effects 2 | . . . 2 Data Loss (minor) 1 | . . . 1 Data Loss (major) 1 | . . . 1 Overload Shots . | . . . . Overflow Damage . | . . . . Projectiles . | . . . . Explosions . | . . . . Melee . | . . . . Knockbacks 1 | . . 1 . Impact 1 | . . 1 . Kinetic . | . . . . Secondary . | . . . . Self-Inflicted Damage 30 | . . 30 . Shots 1 | . . 1 . Rammed . | . . . . Targets Rammed 9 | . . 9 . Kicked 9 | . . 9 . Crushed . | . . . . Highest Temperature 171 | 60 159 6 171 Average Temperature 38 | 19 44 3 57 Received Heat Transfer 1443 | . 123 357 963 Siege Activations . | . . . . Robots Corrupted . | . . . . Combat Hostiles . | . . . . Parts Fried . | . . . . Impact Corruptions . | . . . . Robots Melted 2 | . . 1 1 Combat Hostiles 2 | . . 1 1 Parts Melted 16 | . . 11 5 Heat Transferred 6891 | 675 650 3827 1739 Parts Sabotaged . | . . . . Parts Stolen . | . . . . Parts Stripped . | . . . . Power Chain Reactions 2 | . . 2 . Missiles Intercepted . | . . . . Alert | -11 -10 -9 -8 ------- Run | Scr Mat Mat Mat Peak Influence 491 | 50 128 491 340 Initial 200 | . 13 46 200 Average 211 | 17 57 354 234 Maximum Alert Level 2 | . . 2 1 Low Security (%) 47 | 100 100 14 10 Level 1 32 | . . 42 89 Level 2 19 | . . 42 . Level 3 . | . . . . Level 4 . | . . . . Level 5 . | . . . . High Security . | . . . . Max Security . | . . . . Squads Dispatched 6 | . 1 2 3 Investigation 2 | . . 1 1 Extermination . | . . . . Reinforcement 3 | . 1 1 1 Assault . | . . . . Garrison 1 | . . . 1 Intercept . | . . . . Searches Triggered . | . . . . Construction Impeded . | . . . . Haulers Reinforced . | . . . . Active Scanning Responses . | . . . . Cargo Convoy Interrupts . | . . . . Stealth | -11 -10 -9 -8 --------- Run | Scr Mat Mat Mat Distress Signals 7 | . 1 2 4 Communications Jammed . | . . . . Distress Signals . | . . . . Times Spotted 71 | . 17 36 18 Peak Tracking Total 8 | . 5 6 8 Tactical Retreats 3 | . . 2 1 Traps | -11 -10 -9 -8 ------- Run | Scr Mat Mat Mat Traps Triggered 1 | . . . 1 Indirectly . | . . . . Trap Hack Attempts . | . . . . Triggered . | . . . . Disarmed 1 | . 1 . . Reprogrammed . | . . . . Reused . | . . . . Traps Extracted . | . . . . Installed . | . . . . Triggered . | . . . . Machines | -11 -10 -9 -8 ---------- Run | Scr Mat Mat Mat Machines Disabled . | . . . . Max in Single Turn . | . . . . Machines Sabotaged . | . . . . Garrisons Compromised . | . . . . Overloaded Fab Kills . | . . . . Hacking | -11 -10 -9 -8 --------- Run | Scr Mat Mat Mat Machines Accessed 16 | . 3 12 1 Terminals 10 | . 3 6 1 Fabricators . | . . . . Repair Stations 2 | . . 2 . Recycling Units 2 | . . 2 . Scanalyzers 2 | . . 2 . Garrison Access . | . . . . Total Hacks 43 | . 6 34 3 Successful 26 | . 3 22 1 Failed 17 | . 3 12 2 Catastrophic . | . . . . Database Lockouts . | . . . . Manual 2 | . . 2 . Terminals 25 | . 6 16 3 Fabricators . | . . . . Repair Stations 4 | . . 4 . Recycling Units 7 | . . 7 . Scanalyzers 7 | . . 7 . Garrison Access . | . . . . Terminal Hacks 10 | . 3 6 1 Robot Analysis 1 | . . 1 . Prototype ID Bank 1 | . . 1 . Emergency Access Points 1 | . . 1 . Terminal Index 1 | . . . 1 Scanalyzer Index 1 | . . 1 . Disarm Traps 1 | . 1 . . Dispatch Records 3 | . 2 1 . Hauler Manifests 1 | . . 1 . Fabricator Hacks . | . . . . Repair Station Hacks 4 | . . 4 . Scan Component 2 | . . 2 . Repair 2 | . . 2 . Recycling Unit Hacks 5 | . . 5 . Process 1 | . . 1 . Report Inventory 2 | . . 2 . Retrieve Matter 1 | . . 1 . Retrieve Components 1 | . . 1 . Scanalyzer 7 | . . 7 . Insert Component 3 | . . 3 . Analyze 4 | . . 4 . Garrison Access Hacks . | . . . . Unauthorized Hacks . | . . . . Terminals . | . . . . Fabricators . | . . . . Repair Stations . | . . . . Recycling Units . | . . . . Scanalyzers . | . . . . Garrison Access . | . . . . Data Cores Recovered . | . . . . Used . | . . . . Hacking Detections 10 | . 1 8 1 Full Trace Events 4 | . . 3 1 Feedback Events . | . . . . Feedback Blocked . | . . . . Robot Schematics Acquired . | . . . . Robots Built . | . . . . Authchips . | . . . . Time . | . . . . Total Robot Build Rating . | . . . . Part Schematics Acquired 3 | . . 3 . Parts Built . | . . . . Authchips . | . . . . Time . | . . . . Total Part Build Rating . | . . . . Parts Repaired 2 | . . 2 . Time 70 | . . 70 . Parts Recycled . | . . . . Recycled Matter 210 | . . 210 . Retrieved Matter 210 | . . 210 . Retrieved Components 9 | . . 9 . Parts Scanalyzed 3 | . . 3 . Part Schematics Acquired 3 | . . 3 . Parts Damaged . | . . . . Bothacking | -11 -10 -9 -8 ------------ Run | Scr Mat Mat Mat Used RIF Installer . | . . . . Robots Hacked . | . . . . Non-combat . | . . . . Combat . | . . . . Robot Hacks Applied . | . . . . Relay Couplers Released . | . . . . Fabnet Peak Effective % . | . . . . Robots Rewired . | . . . . Allies Hacked . | . . . . Hacks Repelled . | . . . . Allies | -11 -10 -9 -8 -------- Run | Scr Mat Mat Mat Total Allies . | . . . . Largest Group . | . . . . Highest-Rated Group . | . . . . Highest-Rated Ally . | . . . . Total Orders . | . . . . Ally Attacks . | . . . . Total Damage . | . . . . Kills . | . . . . Allies Corrupted . | . . . . Allies Melted . | . . . . Intel | -11 -10 -9 -8 ------- Run | Scr Mat Mat Mat Robot Analysis Total 1 | . . 1 . Derelict Logs Recovered . | . . . . Drone Launches . | . . . . Drone Recoveries . | . . . . Exploration | -11 -10 -9 -8 ------------- Run | Scr Mat Mat Mat Turns Passed 3126 | 629 607 1441 449 Spaces Moved 1516 | 349 363 678 126 Core 5 | 3 . . 2 Treads 153 | 148 . . 5 Legs 1358 | 198 363 678 119 Wheels . | . . . . Hover . | . . . . Flight . | . . . . Fastest Speed 50 | 50 120 120 150 Average Speed 140 | 136 120 142 198 Slowest Speed 330 | 160 120 260 330 Overloaded Moves . | . . . . Propulsion Burnouts . | . . . . Robots Hopped . | . . . . Cave-ins Triggered . | . . . . Exploration Rate (%) 38 | 17 43 73 20 Regions Visited 3 Branch Regions . Pre-discovered Areas . | . . . . Known Exits Taken . | . . . . Unknown Exits Taken 3 | 1 1 1 . Scrap Searched . | . . . . Spaces Dug 1 | 1 . . . Terrain Destroyed 11 | 1 . 10 . Melee . | . . . . Projectile 1 | 1 . . . AOE 10 | . . 10 . Terrain Rammed . | . . . . Walls Destroyed . | . . . . Machines Disabled . | . . . . Actions | -11 -10 -9 -8 --------- Run | Scr Mat Mat Mat Total 2096 | 418 451 978 249 Wait 224 | . 19 146 59 Move 1513 | 348 362 677 126 Hop . | . . . . Pick Up 44 | 14 8 16 6 Fast Attach 1 | . . 1 . Attach 24 | 7 . 6 11 Detach . | . . . . Swap 24 | 3 6 14 1 Drop 29 | 1 8 17 3 Fire 228 | 45 48 92 43 Melee . | . . . . Ram . | . . . . Kick 9 | . . 9 . Crush . | . . . . Escape Stasis . | . . . . Rewire . | . . . . Trap . | . . . . Miscellaneous . | . . . . Route ------- -11/Scrapyard -10/Materials -9/Materials (discovered 5 exits: *Mat x2 / [*Min] / [*Sto x2]) -8/Materials History --------- Turn | Location | Event 25 | -11/Scrapyard | Discovered new exit (range 16) 630 | -11/Scrapyard | Entered Materials 631 | -10/Materials | Build established: Mutant 1188 | -10/Materials | Discovered new exit (range 16) 1237 | -10/Materials | Entered another Materials area 1237 | -9/Materials | Evolved 2 slots: Utility x2 1378 | -9/Materials | Repaired Weight Redist. System 1546 | -9/Materials | Build established: Scavenger-Mutant 1703 | -9/Materials | Discovered new exit (range 4) 1810 | -9/Materials | Repaired Imp. Heat Sink 1872 | -9/Materials | Discovered new exit (range 16) 2003 | -9/Materials | Discovered new exit (range 8) 2288 | -9/Materials | Core integrity fell below 50% 2594 | -9/Materials | Discovered new exit (range 12) 2625 | -9/Materials | Build established: Mutant 2639 | -9/Materials | Discovered new exit (range 14) 2678 | -9/Materials | Entered another Materials area 2678 | -8/Materials | Evolved 2 slots: Utility x2 2928 | -8/Materials | Lost 3 parts (2u1w) 2981 | -8/Materials | Build established: Scavenger-Mutant 3014 | -8/Materials | Lost 4 parts (1p1n1u1w) 3021 | -8/Materials | Garrison activated, responded to threat 3100 | -8/Materials | Core integrity fell below 50% 3118 | -8/Materials | Core integrity fell below 20% 3127 | -8/Materials | Destroyed by B-36 Bruiser with Hammer Last Messages --------------- 03095_ R-06 Scavenger collects Imp. Aluminum Leg. 03098_ R-06 Scavenger collects Imp. Ion Engine. 03101_ Visual Processing Unit destroyed. 03101_ System corrupted by crushing effect (+4). 03101_ Knocked back. 03103_ G-47 Trooper destroyed. 03105_ ECM Suite destroyed. 03105_ System corrupted by crushing effect (+4). 03105_ Knocked back. 03108_ System corrupted: Substantial component data lost. 03112_ Weight Redist. System destroyed. 03117_ Critical hit (Burn: +37). 03119_ K-01 Serf collects debris. 03121_ Machine Analyzer destroyed. 03121_ System corrupted by crushing effect (+1). 03122_ K-01 Serf collects debris. 03124_ System corrupted: Component data lost. 03126_ K-01 Serf collects debris. 03127_ Lrg. Storage Unit destroyed. 03127_ System corrupted by crushing effect (+2). Map ----- +----------------------------------------------------+ | ??????????? ????????????????????????????????????? | | ""????????? #??????????????????????????????????? | | ""????????# #??????????????????????????????????? | | ""????????# #??????????????????????????????????? | | ?????????# #??????????????????????????????????? | | +########## #??????????????????????????????????? | | +??????????????????????????????????? | | #??????????????????????????????????? | | T """ #??????????????????????????????????? | | """ #??????????????????????????????????? | | """ #??????????????????????????????????? | | /= #??????????????????????????????????? | | / #??????????????????????????????????? | | = ########???????????????????????????? | | % ##########??????????????????? | | %%% *%! ?????????????? | | ########### !%[ #######?????????????????????? | | = #?########% #???????????????????????????? | | #????????# ##########??????????????????? | | """ """ #????????# # == ####???????????????? | | """ """ #?######## =# == "" #???????????????? | | """ """ #?# ^ %# == G"#?????"""???????? | | #?# + g* "" #????"""""??????? | | #########?# """ #gg= #???????"""""??????? | | ??????????#### """ #[!= #???????"""""??????? | | ?????????????# """ # b@ #????????"""???????? | | ?????????""??# # = #??????????????????? | | ?????????"""?# #[%!k #??????????????????? | | ????""????S"?# ##+#######??????????????????? | | ????"T??????# ????????????????????????? | | ????""??"""?+ ??????????????????H?????? | | ????????""" # ???????????????????????? | | ????????"""?## ########+##???????????????????????? | | ?????????????# ??????? ????????????????????????? | | ????????"""??#???????? ????????????????????????? | | ????????"""??????????? ????????????????????????? | | ????????"""??????????? ????????????????????????? | | ?????????????????????? ????????????????????????? | | ?????????????????????? ????????????????????????? | | ?????????????????????? ???????????????????????? | | ?????????????????????? ???????????????????????? | | ?????????????????????????????????????????????????? | | ?????????????????????????????????????????????????? | | ?????????????????????????????????????????????????? | | ?????????????????????????????????????????????????? | | ?????????????????????????????????????????????????? | | ?????????????????????????????????????????????????? | | ?????????????????????????????????????????????????? | | ?????????????????????????????????????????????????? | | ?????????????????????????????????????????????????? | +----------------------------------------------------+ Best States ------------- Heat Dissipation 45 Energy Generation 14 Energy Capacity 280 Matter Stores 300 Matter Capacity 300 Sight Range 18 Robot Scan Range 14 Terrain Scan Range 16 Terrain Scan Density 10 ECM Strength 1 Additional Mass Support 6 Armor Coverage 150 Evasion (%) 55 Targeting Accuracy 6 Recoil Reduction 1 Item Schematics ----------------- Cld. Ion Engine | -9/Materials | Scanalyzed Imp. EM Shotgun | -9/Materials | Scanalyzed ECM Suite | -9/Materials | Scanalyzed Robot Schematics ------------------ None Fabricated ------------ Nothing Alien Tech Used ----------------- None Achievements -------------- None Challenges ------------ None Game ------ Seed SiegeHardlightMicrothruster Manual? 0 Play Time 00:53:09 Cumulative 21.4 hours Start 2022.06.29 @ 22:07:38 End 2022.06.30 @ 00:49:12 Sessions 2 Manual Loads 0 Difficulty Rogue Special Mode None Game No. 24 Rogue 24 Adventurer 0 Explorer 0 Win Type - Total 0 Types 0/0/0/0/0/0/0/0/0 Lore% 18 Gallery% 21 Achievement% 16 Wizard Run 0 Options --------- ASCII 0 Keyboard 0 Movement Mouse Keybinds 0 Fullscreen 2 Font 18/X11Bold Map View 76x50 Tactical HUD 1 Map Filters NONE Filters NONE Steam 1 RUN: 4f3a7254-8831-4896-b783-8a5bbfa99469